[Event "44th Chess Olympiad Women 2022"]
[Site "Chennai"]
[Date "2022.08.09"]
[Round "11.15"]
[White "Blokhin, Sofia"]
[Black "Markantonaki, Haritomeni"]
[Result "0-1"]
[ECO "C54"]
[WhiteElo "1996"]
[BlackElo "2154"]
[Annotator "RC"]
[PlyCount "100"]
[EventDate "2022.07.29"]
[EventType "team-tourn"]
[EventCountry "IND"]
[SourceTitle "playchess.com"]
[Source "ChessBase"]
[SourceQuality "1"]
[WhiteTeam "Estonia"]
[BlackTeam "Greece"]
[WhiteTeamCountry "EST"]
[BlackTeamCountry "GRE"]
[TimeControl "40/5400+30:1800+30"]

1. e4 {[%emt 0:00:02]} e5 {[%emt 0:00:11]} 2. Bc4 {[%emt 0:00:08]} Nf6 {[%emt 0:00:12]} 3. d3 {[%emt 0:00:05]} Bc5 {[%emt 0:00:42]} 4. Nf3 {[%emt 0:00:08]} Nc6 {[%emt 0:00:18]} 5. O-O {[%emt 0:00:15]} O-O {[%emt 0:00:14]} 6. c3 {[%emt 0:00:10]} d6 {[%emt 0:00:20]} 7. b4 {[%emt 0:00:17]} Bb6 {[%emt 0:00:05]} 8. a4 {[%emt 0:00:11]} a5 {[%emt 0:00:14]} 9. b5 {[%emt 0:00:07]} Ne7 {[%emt 0:00:05]} 10. h3 {[%emt 0:03:13]} Ng6 {[%emt 0:00:46]} 11. Bb3 {[%emt 0:03:51]} c6 {[%emt 0:03:31]} 12. c4 {[%emt 0:05:19]} Nh5 {[%emt 0:15:37]} 13. Nc3 {[%emt 0:19:44]} Nhf4 {[%emt 0:02:15]} 14. Kh2 {[%emt 0:07:38]} h6 {[%emt 0:06:44]} 15. Ne2 {[%emt 0:03:05]} Qf6 {[%emt 0:05:54]} 16. Nxf4 {[%emt 0:06:11]} Nxf4 {[%emt 0:00:20]} 17. Be3 {[%emt 0:03:45]} Bc7 {[%emt 0:05:04]} 18. Ng1 {[%emt 0:05:01]} Be6 {[%emt 0:05:52]} 19. g3 {[%emt 0:01:57]} Ng6 {[%emt 0:00:41]} 20. Rc1 {[%emt 0:02:53]} Qe7 {[%emt 0:03:17]} 21. Qh5 {[%emt 0:02:15]} Nh8 {[%emt 0:07:27]} 22. f4 {[%emt 0:07:13]} f5 {[%emt 0:06:17]} 23. exf5 {[%emt 0:03:30]} Rxf5 {[%emt 0:01:29]} 24. Qe2 {[%emt 0:01:10]} exf4 {[%emt 0:07:06]} 25. Bxf4 {[%emt 0:01:43]} Qf6 {[%emt 0:02:11]} 26. Rce1 {[%emt 0:03:15]} Bf7 {[%emt 0:01:45]} 27. Qd1 {[%emt 0:09:34]} Ng6 {[%emt 0:02:50]} 28. Be3 {[%emt 0:05:17]} Re8 {[%emt 0:04:34]} 29. Rxf5 {[%emt 0:01:02]} Qxf5 {[%emt 0:00:16]} 30. Rf1 {[%emt 0:00:44]} Qe5 {[%emt 0:03:54]} 31. Bf2 {[%emt 0:01:26]} Qb2 {[%emt 0:02:33]} 32. Qc2 {[%emt 0:00:45]} Qxc2 {[%emt 0:00:40]} 33. Bxc2 {[%emt 0:00:04]} Ne5 {[%emt 0:02:02]} 34. Bd4 {[%emt 0:01:11]} c5 {[%emt 0:04:12]} 35. Bxe5 {[%emt 0:00:34]} Rxe5 {[%emt 0:00:15]} 36. Rf2 {[%emt 0:00:58]} d5 {[%emt 0:01:22]} 37. Nf3 {[%emt 0:00:26]} Re3 {[%emt 0:00:21]} 38. cxd5 {[%emt 0:02:12]} Bxd5 {[%emt 0:00:06]} 39. Bd1 {[%emt 0:01:16]} Rxd3 {[%emt 0:00:50]} 40. Rd2 {[%emt 0:00:14]} Rxd2+ {[%emt 0:06:10]} 41. Nxd2 {[%emt 0:30:07]} Kf7 {[%emt 0:02:18]} 42. Nf1 {[%emt 0:00:00]} Ke6 {[%emt 0:02:21]} 43. Ne3 {[%emt 0:00:00]} Ke5 {[%emt 0:01:36]} 44. Bc2 {[%emt 0:00:00]} Kd4 {[%emt 0:01:44]} 45. Nf5+ {[%emt 0:00:00]} Kc3 {[%emt 0:00:34]} 46. Ne3 {[%emt 0:00:00]} Bb3 {[%emt 0:01:16]} 47. Bg6 {[%emt 0:00:00]} Kd2 {[%emt 0:01:47]} 48. Nf5 {[%emt 0:00:00]} Bc2 {[%emt 0:01:02]} 49. Kg2 {[%emt 0:00:00]} Bxf5 {[%emt 0:00:30]} 50. Bxf5 {[%emt 0:00:00]} c4 {[%emt 0:00:02]} 0-1

[Event "44th Chess Olympiad Women 2022"]
[Site "Chennai"]
[Date "2022.08.09"]
[Round "11.16"]
[White "Rogule, Laura"]
[Black "Martynkova, Olena"]
[Result "1/2-1/2"]
[ECO "E65"]
[WhiteElo "2292"]
[BlackElo "2213"]
[Annotator "RC"]
[PlyCount "81"]
[EventDate "2022.07.29"]
[EventType "team-tourn"]
[EventCountry "IND"]
[SourceTitle "playchess.com"]
[Source "ChessBase"]
[SourceQuality "1"]
[WhiteTeam "Latvia"]
[BlackTeam "Lithuania"]
[WhiteTeamCountry "LAT"]
[BlackTeamCountry "LTU"]
[TimeControl "40/5400+30:1800+30"]

1. d4 {[%emt 0:00:05]} Nf6 {[%emt 0:00:15]} 2. Nf3 {[%emt 0:00:15]} g6 {[%emt 0:00:22]} 3. c4 {[%emt 0:00:44]} Bg7 {[%emt 0:00:22]} 4. g3 {[%emt 0:06:00]} O-O {[%emt 0:00:51]} 5. Bg2 {[%emt 0:00:25]} d6 {[%emt 0:00:23]} 6. Nc3 {[%emt 0:01:18]} c5 {[%emt 0:02:39]} 7. O-O {[%emt 0:13:01]} Nc6 {[%emt 0:01:14]} 8. h3 {[%emt 0:13:08]} cxd4 {[%emt 0:07:41]} 9. Nxd4 {[%emt 0:00:16]} Nxd4 {[%emt 0:00:11]} 10. Qxd4 {[%emt 0:00:06]} Be6 {[%emt 0:00:20]} 11. Qh4 {[%emt 0:04:36]} Rc8 {[%emt 0:03:50]} 12. b3 {[%emt 0:19:38]} Nd7 {[%emt 0:09:20]} 13. Bd2 {[%emt 0:01:52]} Bf6 {[%emt 0:15:18]} 14. Qf4 {[%emt 0:10:45]} Be5 {[%emt 0:03:40]} 15. Qe3 {[%emt 0:01:55]} Nc5 {[%emt 0:02:55]} 16. Rac1 {[%emt 0:02:12]} a5 {[%emt 0:05:13]} 17. Nd5 {[%emt 0:10:35]} Bxd5 {[%emt 0:09:38]} 18. Bxd5 {[%emt 0:01:04]} e6 {[%emt 0:01:41]} 19. Bg2 {[%emt 0:00:33]} b6 {[%emt 0:05:42]} 20. Rfd1 {[%emt 0:04:30]} Qf6 {[%emt 0:00:00]} 21. Be1 {[%emt 0:00:25]} Rfd8 {[%emt 0:01:39]} 22. f4 {[%emt 0:01:18]} Bb2 {[%emt 0:00:13]} 23. Rc2 {[%emt 0:00:49]} Qg7 {[%emt 0:03:25]} 24. Kh2 {[%emt 0:01:10]} Bf6 {[%emt 0:01:40]} 25. Rcd2 {[%emt 0:02:21]} Bc3 {[%emt 0:01:05]} 26. Rc2 {[%emt 0:01:43]} Bxe1 {[%emt 0:00:17]} 27. Rxe1 {[%emt 0:00:02]} d5 {[%emt 0:00:35]} 28. cxd5 {[%emt 0:00:36]} exd5 {[%emt 0:00:10]} 29. Rd1 {[%emt 0:00:59]} d4 {[%emt 0:01:40]} 30. Qf2 {[%emt 0:01:00]} Rd6 {[%emt 0:05:00]} 31. a3 {[%emt 0:01:56]} Rcd8 {[%emt 0:04:12]} 32. b4 {[%emt 0:00:06]} axb4 {[%emt 0:00:14]} 33. axb4 {[%emt 0:00:02]} d3 {[%emt 0:01:28]} 34. exd3 {[%emt 0:01:19]} Nxd3 {[%emt 0:00:24]} 35. Qe3 {[%emt 0:00:30]} Qf8 {[%emt 0:08:26]} 36. b5 {[%emt 0:00:31]} Nc5 {[%emt 0:01:27]} 37. Rcd2 {[%emt 0:00:19]} Rxd2 {[%emt 0:01:17]} 38. Rxd2 {[%emt 0:00:01]} Rxd2 {[%emt 0:00:32]} 39. Qxd2 {[%emt 0:00:03]} Qe7 {[%emt 0:00:41]} 40. Bc6 {[%emt 0:01:27]} Qf6 {[%emt 0:00:29]} 41. Bd5 {[%emt 0:11:12]} 1/2-1/2

[Event "44th Chess Olympiad Women 2022"]
[Site "Chennai"]
[Date "2022.08.09"]
[Round "11.16"]
[White "Baginskaite, Kamile"]
[Black "Berzina, Ilze"]
[Result "0-1"]
[ECO "D31"]
[WhiteElo "2134"]
[BlackElo "2141"]
[Annotator "RC"]
[PlyCount "198"]
[EventDate "2022.07.29"]
[EventType "team-tourn"]
[EventCountry "IND"]
[SourceTitle "playchess.com"]
[Source "ChessBase"]
[SourceQuality "1"]
[WhiteTeam "Lithuania"]
[BlackTeam "Latvia"]
[WhiteTeamCountry "LTU"]
[BlackTeamCountry "LAT"]
[TimeControl "40/5400+30:1800+30"]

1. d4 {[%emt 0:00:02]} d5 {[%emt 0:00:12]} 2. c4 {[%emt 0:00:05]} e6 {[%emt 0:00:11]} 3. Nc3 {[%emt 0:02:35]} c6 {[%emt 0:00:17]} 4. e3 {[%emt 0:00:09]} Nd7 {[%emt 0:00:26]} 5. Qc2 {[%emt 0:04:26]} Bd6 {[%emt 0:12:21]} 6. Nf3 {[%emt 0:05:32]} Nh6 {[%emt 0:02:07]} 7. e4 {[%emt 0:06:06]} dxe4 {[%emt 0:04:16]} 8. Bxh6 {[%emt 0:03:45]} gxh6 {[%emt 0:05:05]} 9. Qxe4 {[%emt 0:14:07]} Nf6 {[%emt 0:03:19]} 10. Qh4 {[%emt 0:05:13]} h5 {[%emt 0:12:25]} 11. O-O-O {[%emt 0:12:17]} Ng4 {[%emt 0:05:28]} 12. Ne4 {[%emt 0:13:57]} Bf4+ {[%emt 0:01:37]} 13. Kb1 {[%emt 0:01:13]} Qxh4 {[%emt 0:00:30]} 14. Nxh4 {[%emt 0:00:05]} Ke7 {[%emt 0:17:05]} 15. g3 {[%emt 0:01:47]} Bc7 {[%emt 0:06:58]} 16. Be2 {[%emt 0:07:43]} f5 {[%emt 0:02:21]} 17. h3 {[%emt 0:00:12]} Nxf2 {[%emt 0:01:17]} 18. Nxf2 {[%emt 0:13:27]} Bxg3 {[%emt 0:00:10]} 19. Nxf5+ {[%emt 0:00:03]} exf5 {[%emt 0:00:09]} 20. Rhf1 {[%emt 0:00:24]} h4 {[%emt 0:02:16]} 21. Nd3 {[%emt 0:00:06]} f4 {[%emt 0:07:54]} 22. Nxf4 {[%emt 0:02:06]} Rf8 {[%emt 0:00:12]} 23. Nh5 {[%emt 0:00:16]} Bxh3 {[%emt 0:00:38]} 24. Rg1 {[%emt 0:02:01]} Bf2 {[%emt 0:04:09]} 25. Rg7+ {[%emt 0:01:06]} Rf7 {[%emt 0:00:35]} 26. Rxf7+ {[%emt 0:00:10]} Kxf7 {[%emt 0:00:05]} 27. Bf3 {[%emt 0:00:11]} Bf5+ {[%emt 0:00:23]} 28. Ka1 {[%emt 0:00:20]} Re8 {[%emt 0:03:24]} 29. d5 {[%emt 0:00:19]} Re1 {[%emt 0:00:20]} 30. Rxe1 {[%emt 0:01:18]} Bxe1 {[%emt 0:00:02]} 31. dxc6 {[%emt 0:00:05]} bxc6 {[%emt 0:00:05]} 32. Bxc6 {[%emt 0:00:26]} Bd2 {[%emt 0:01:52]} 33. Bf3 {[%emt 0:00:47]} Be3 {[%emt 0:03:08]} 34. a3 {[%emt 0:00:21]} h3 {[%emt 0:00:37]} 35. b4 {[%emt 0:01:05]} h2 {[%emt 0:01:19]} 36. Ng3 {[%emt 0:00:05]} Bd3 {[%emt 0:00:43]} 37. c5 {[%emt 0:00:39]} Bf4 {[%emt 0:00:23]} 38. Nh1 {[%emt 0:01:15]} Ke6 {[%emt 0:00:35]} 39. Kb2 {[%emt 0:00:42]} Bd2 {[%emt 0:03:08]} 40. Nf2 {[%emt 0:01:06]} Bc4 {[%emt 0:00:45]} 41. Kc2 {[%emt 0:05:40]} Be1 {[%emt 0:01:28]} 42. Ng4 {[%emt 0:03:36]} Bg3 {[%emt 0:03:34]} 43. Ne3 {[%emt 0:00:06]} Be2 {[%emt 0:00:48]} 44. Bh1 {[%emt 0:05:01]} Bb5 {[%emt 0:10:45]} 45. Kb3 {[%emt 0:03:46]} Bf2 {[%emt 0:10:40]} 46. a4 {[%emt 0:01:47]} Be2 {[%emt 0:01:53]} 47. Nd5 {[%emt 0:01:07]} Bd1+ {[%emt 0:00:11]} 48. Kc4 {[%emt 0:03:00]} Bxa4 {[%emt 0:00:41]} 49. b5 {[%emt 0:00:02]} Bd1 {[%emt 0:04:27]} 50. b6 {[%emt 0:00:38]} axb6 {[%emt 0:00:05]} 51. cxb6 {[%emt 0:00:29]} Be2+ {[%emt 0:00:15]} 52. Kb4 {[%emt 0:01:11]} Bg3 {[%emt 0:00:45]} 53. Kc5 {[%emt 0:01:10]} h5 {[%emt 0:01:05]} 54. b7 {[%emt 0:02:16]} Kd7 {[%emt 0:00:33]} 55. Kd4 {[%emt 0:00:56]} h4 {[%emt 0:01:02]} 56. Ke3 {[%emt 0:01:20]} Ba6 {[%emt 0:00:19]} 57. Nb4 {[%emt 0:04:06]} Bb5 {[%emt 0:00:05]} 58. Nd5 {[%emt 0:00:58]} Bb8 {[%emt 0:00:53]} 59. Kf2 {[%emt 0:00:52]} h3 {[%emt 0:00:26]} 60. Nf6+ {[%emt 0:01:01]} Kd6 {[%emt 0:00:54]} 61. Ng4 {[%emt 0:00:37]} Bc6 {[%emt 0:00:29]} 62. Kg3 {[%emt 0:02:30]} Bxh1 {[%emt 0:00:16]} 63. Kxh3 {[%emt 0:00:27]} Bxb7 {[%emt 0:00:26]} 64. Nxh2 {[%emt 0:00:01]} Ke5 {[%emt 0:00:14]} 65. Nf1 {[%emt 0:01:53]} Kf4 {[%emt 0:00:12]} 66. Ng3 {[%emt 0:00:00]} Bc8+ {[%emt 0:00:25]} 67. Kg2 {[%emt 0:00:10]} Kg4 {[%emt 0:00:13]} 68. Nf1 {[%emt 0:00:12]} Bb7+ {[%emt 0:00:33]} 69. Kf2 {[%emt 0:00:05]} Ba7+ {[%emt 0:00:07]} 70. Ke2 {[%emt 0:00:29]} Ba6+ {[%emt 0:00:07]} 71. Ke1 {[%emt 0:00:01]} Kf3 {[%emt 0:00:12]} 72. Nd2+ {[%emt 0:00:28]} Ke3 {[%emt 0:00:21]} 73. Nf1+ {[%emt 0:00:09]} Kd3 {[%emt 0:00:05]} 74. Nd2 {[%emt 0:01:30]} Bd4 {[%emt 0:00:11]} 75. Nf3 {[%emt 0:00:14]} Be3 {[%emt 0:00:11]} 76. Nh4 {[%emt 0:00:50]} Bb7 {[%emt 0:00:38]} 77. Kf1 {[%emt 0:00:06]} Bg5 {[%emt 0:00:05]} 78. Ng2 {[%emt 0:00:19]} Ke4 {[%emt 0:00:41]} 79. Kf2 {[%emt 0:00:15]} Bd8 {[%emt 0:00:29]} 80. Kg3 {[%emt 0:00:22]} Bc7+ {[%emt 0:00:10]} 81. Kf2 {[%emt 0:00:44]} Bh2 {[%emt 0:00:26]} 82. Ne3 {[%emt 0:00:36]} Bd6 {[%emt 0:00:34]} 83. Ng2 {[%emt 0:00:09]} Bc6 {[%emt 0:00:14]} 84. Ke2 {[%emt 0:01:34]} Bc5 {[%emt 0:00:12]} 85. Ne1 {[%emt 0:00:56]} Bb5+ {[%emt 0:00:07]} 86. Kd2 {[%emt 0:00:13]} Bb4+ {[%emt 0:00:22]} 87. Kd1 {[%emt 0:00:04]} Bc3 {[%emt 0:02:14]} 88. Nc2 {[%emt 0:01:13]} Ba4 {[%emt 0:00:00]} 89. Kc1 {[%emt 0:00:04]} Kd3 {[%emt 0:00:00]} 90. Na3 {[%emt 0:00:30]} Be5 {[%emt 0:00:02]} 91. Kb1 {[%emt 0:00:35]} Kc3 {[%emt 0:00:25]} 92. Ka2 {[%emt 0:00:27]} Bb3+ {[%emt 0:00:53]} 93. Kb1 {[%emt 0:00:06]} Bf6 {[%emt 0:00:29]} 94. Kc1 {[%emt 0:00:44]} Bg5+ {[%emt 0:00:41]} 95. Kb1 {[%emt 0:00:06]} Bd5 {[%emt 0:00:18]} 96. Nb5+ {[%emt 0:00:50]} Kc4 {[%emt 0:00:24]} 97. Nd6+ {[%emt 0:02:07]} Kb3 {[%emt 0:00:43]} 98. Ka1 {[%emt 0:00:41]} Bf6+ {[%emt 0:01:03]} 99. Kb1 {[%emt 0:00:02]} Bb2 {[%emt 0:00:18]} 0-1

[Event "44th Chess Olympiad Women 2022"]
[Site "Chennai"]
[Date "2022.08.09"]
[Round "11.16"]
[White "Simkunaite, Gabija"]
[Black "Maklakova, Nellija"]
[Result "1-0"]
[ECO "D20"]
[WhiteElo "2010"]
[BlackElo "1819"]
[Annotator "TA"]
[PlyCount "57"]
[EventDate "2022.07.29"]
[EventType "team-tourn"]
[EventCountry "IND"]
[SourceTitle "playchess.com"]
[Source "ChessBase"]
[SourceQuality "1"]
[WhiteTeam "Lithuania"]
[BlackTeam "Latvia"]
[WhiteTeamCountry "LTU"]
[BlackTeamCountry "LAT"]
[TimeControl "40/5400+30:1800+30"]

{[%evp 16,57,86,26,112,68,72,66,104,43,110,77,179,152,157,155,160,151,187,145,281,297,499,501,485,493,470,459,802,502,494,497,1515,1489,29988,29989,29989,29990,29990,29981,29979,29980,12831,5773]} 1. e4 {[%emt 0:00:15]} e6 {[%emt 0:00:19]} 2. d4 {[%emt 0:00:16]} d5 {[%emt 0:00:13]} 3. exd5 {[%emt 0:00:06]} exd5 {[%emt 0:00:23]} 4. Nf3 {[%emt 0:00:05]} Bd6 {[%emt 0:01:43]} 5. c4 {[%emt 0:00:07]} dxc4 {[%emt 0:05:55]} 6. Bxc4 {[%emt 0:00:07]} Qe7+ {[%emt 0:02:22]} 7. Be3 {[%emt 0:05:06]} Nf6 {[%emt 0:18:37]} 8. O-O {[%emt 0:02:41]} O-O {[%emt 0:00:05]} 9. Nc3 {[%emt 0:01:21]} (9. Re1 $16) 9... c6 {[%emt 0:09:59] D20: Queen's Gambit Accepted: 3 e3 and 3 e4.} (9... Be6 $11 10. b3 c6) 10. Re1 {[%emt 0:02:10] aiming for Bg5.} Qc7 {[%emt 0:01:17]} 11. Bg5 {[%emt 0:07:19] Black must now prevent Bxf6.} Nbd7 {[%emt 0:06:29] White leaves nothing to chance now. White is slightly better.} 12. Rc1 {[%emt 0:15:05] [#] White is more active.} ({White should play} 12. Qc2 $16) 12... a6 $146 {[%emt 0:10:49]} (12... h6 $14 13. Bd2 Nb6) ({Predecessor:} 12... Bf4 13. Bxf4 Qxf4 14. Ne2 Qd6 15. Ng3 Nb6 16. Bd3 Bg4 17. Nf5 Qf4 18. Qd2 Qxd2 19. Nxd2 Nbd5 {0-1 (43) Rout,I-Bonham,K (1767) Burnie 2020}) 13. Bb3 {[%emt 0:08:36]} b5 {[%emt 0:01:00] [#]} (13... Bf4 $16) 14. Nd5 $1 {[%emt 0:03:18][%mdl 512]} Nxd5 {[%emt 0:01:46]} 15. Bxd5 {[%emt 0:02:33][%mdl 64] Pin} Bb7 {[%emt 0:00:44] [#]} 16. Bxc6 $1 {[%emt 0:04:15][%mdl 512]} Bxc6 {[%emt 0:00:02]} (16... h6 17. Bxb5) 17. d5 $36 {[%emt 0:00:06][%cal Bd4d5,Bd5c6][%mdl 2080] White is really pushing.} Bb4 {[%emt 0:02:08]} (17... Nc5 $16) 18. Re4 $18 {[%emt 0:05:32][%cal Be1e4,Be4h4,Bh4h6][%mdl 32]} ({Don't do} 18. Rxc6 $6 Qb7 $18) 18... Qa5 {[%emt 0:06:45]} (18... Bd6 {was called for.} 19. Rxc6 Qb8) 19. dxc6 {[%emt 0:00:34]} Nc5 {[%emt 0:01:29]} 20. Rh4 {[%emt 0:12:54]} Ne6 {[%emt 0:02:19]} 21. Qd3 {[%emt 0:00:42][%csl Gh4][%cal Rd3h7]} h6 {[%emt 0:15:40]} (21... g6 $142 22. Bf6 Rfd8 23. Bxd8 Rxd8) 22. a3 {[%emt 0:07:46]} Bd6 {[%emt 0:00:36]} 23. Bxh6 {[%emt 0:01:21] Strongly threatening Bd2.} ({Not} 23. Qxd6 hxg5 24. Re4 Rfd8 $18) 23... Bxh2+ {[%emt 0:00:39]} (23... Qd8 $142) 24. Nxh2 {[%emt 0:01:25][%cal Oh6g7] Intending Bxg7! and mate.} gxh6 {[%emt 0:00:10]} 25. Rxh6 {[%emt 0:04:57][%csl Gh6][%cal Rd3h7]} Rfd8 {[%emt 0:00:10]} 26. Qh7+ {[%emt 0:01:03]} Kf8 {[%emt 0:00:02]} 27. Rf6 {[%emt 0:00:22][%csl Gf6][%cal Rh7f7]} Ra7 {[%emt 0:01:11]} 28. Rxe6 {[%emt 0:00:47]} fxe6 {[%emt 0:01:51]} 29. Qxa7 {[%emt 0:00:05] Weighted Error Value: White=0.28 (precise) /Black=0.84} 1-0

[Event "44th Chess Olympiad Women 2022"]
[Site "Chennai"]
[Date "2022.08.09"]
[Round "11.16"]
[White "Ter-Avetisjana, Agnesa Stepania"]
[Black "Zaksaite, Salomeja"]
[Result "0-1"]
[ECO "B22"]
[WhiteElo "1962"]
[BlackElo "2212"]
[Annotator "RC"]
[PlyCount "104"]
[EventDate "2022.07.29"]
[EventType "team-tourn"]
[EventCountry "IND"]
[SourceTitle "playchess.com"]
[Source "ChessBase"]
[SourceQuality "1"]
[WhiteTeam "Latvia"]
[BlackTeam "Lithuania"]
[WhiteTeamCountry "LAT"]
[BlackTeamCountry "LTU"]
[TimeControl "40/5400+30:1800+30"]

1. e4 {[%emt 0:00:04]} c5 {[%emt 0:01:05]} 2. Nf3 {[%emt 0:00:07]} Nc6 {[%emt 0:00:26]} 3. c3 {[%emt 0:00:06]} Nf6 {[%emt 0:01:29]} 4. e5 {[%emt 0:00:06]} Nd5 {[%emt 0:00:03]} 5. d4 {[%emt 0:00:07]} cxd4 {[%emt 0:00:14]} 6. cxd4 {[%emt 0:00:05]} g6 {[%emt 0:09:37]} 7. Nc3 {[%emt 0:00:53]} Nxc3 {[%emt 0:00:15]} 8. bxc3 {[%emt 0:00:01]} d6 {[%emt 0:00:27]} 9. Bb5 {[%emt 0:03:44]} Bg7 {[%emt 0:14:50]} 10. d5 {[%emt 0:08:49]} Qa5 {[%emt 0:05:57]} 11. Rb1 {[%emt 0:17:42]} a6 {[%emt 0:04:00]} 12. Ba4 {[%emt 0:03:56]} b5 {[%emt 0:02:37]} 13. dxc6 {[%emt 0:00:12]} Qxa4 {[%emt 0:09:12]} 14. Qxa4 {[%emt 0:00:26]} bxa4 {[%emt 0:00:03]} 15. exd6 {[%emt 0:00:47]} Bxc3+ {[%emt 0:00:46]} 16. Bd2 {[%emt 0:00:26]} Bxd2+ {[%emt 0:00:04]} 17. Kxd2 {[%emt 0:00:05]} exd6 {[%emt 0:00:07]} 18. Rhe1+ {[%emt 0:01:21]} Kd8 {[%emt 0:04:53]} 19. Ng5 {[%emt 0:02:45]} Ra7 {[%emt 0:01:29]} 20. Rb4 {[%emt 0:02:01]} Re7 {[%emt 0:08:24]} 21. Rxa4 {[%emt 0:08:19]} Rxe1 {[%emt 0:13:47]} 22. Kxe1 {[%emt 0:01:16]} Kc7 {[%emt 0:00:54]} 23. Nxf7 {[%emt 0:03:12]} Re8+ {[%emt 0:00:06]} 24. Kd2 {[%emt 0:00:07]} Kxc6 {[%emt 0:07:48]} 25. Rc4+ {[%emt 0:01:13]} Kd5 {[%emt 0:02:26]} 26. Kc3 {[%emt 0:01:59]} Ke6 {[%emt 0:07:08]} 27. Ng5+ {[%emt 0:03:10]} Kd7 {[%emt 0:00:07]} 28. Nxh7 {[%emt 0:01:57]} Re2 {[%emt 0:00:50]} 29. Rf4 {[%emt 0:11:58]} Ke7 {[%emt 0:00:43]} 30. a4 {[%emt 0:05:15]} a5 {[%emt 0:00:44]} 31. h4 {[%emt 0:01:23]} Bd7 {[%emt 0:00:57]} 32. Ng5 {[%emt 0:05:46]} d5 {[%emt 0:00:53]} 33. Kd4 {[%emt 0:02:35]} Bxa4 {[%emt 0:00:15]} 34. Kxd5 {[%emt 0:01:34]} Bb3+ {[%emt 0:00:05]} 35. Kc5 {[%emt 0:02:44]} a4 {[%emt 0:02:37]} 36. Kb4 {[%emt 0:02:37]} Rb2 {[%emt 0:00:23]} 37. Ne4 {[%emt 0:03:21]} Bc2+ {[%emt 0:01:21]} 38. Kc3 {[%emt 0:03:28]} a3 {[%emt 0:00:35]} 39. Nd2 {[%emt 0:00:15]} Bd1 {[%emt 0:00:57]} 40. Re4+ {[%emt 0:01:58]} Kf7 {[%emt 0:01:04]} 41. Re1 {[%emt 0:07:01]} Rc2+ {[%emt 0:01:42]} 42. Kb3 {[%emt 0:04:44]} Rxd2+ {[%emt 0:00:16]} 43. Kxa3 {[%emt 0:00:06]} Bc2 {[%emt 0:00:12]} 44. Re5 {[%emt 0:02:50]} Kf6 {[%emt 0:11:14]} 45. f4 {[%emt 0:02:16]} Bf5 {[%emt 0:05:15]} 46. g4 {[%emt 0:01:35]} Bxg4 {[%emt 0:00:07]} 47. Rg5 {[%emt 0:00:01]} Bd1 {[%emt 0:00:45]} 48. Rg1 {[%emt 0:00:50]} Rd4 {[%emt 0:00:37]} 49. Kb2 {[%emt 0:00:26]} Bf3 {[%emt 0:02:45]} 50. Rf1 {[%emt 0:00:28]} Rxf4 {[%emt 0:00:09]} 51. Kc3 {[%emt 0:00:01]} Kf5 {[%emt 0:00:16]} 52. Kd2 {[%emt 0:00:22]} Be4 {[%emt 0:01:59]} 0-1

[Event "44th Chess Olympiad Women 2022"]
[Site "Chennai"]
[Date "2022.08.09"]
[Round "11.17"]
[White "Sandu, Mihaela"]
[Black "Morales Flores, Monserrat"]
[Result "1-0"]
[ECO "B43"]
[WhiteElo "2297"]
[BlackElo "1946"]
[Annotator "RC"]
[PlyCount "107"]
[EventDate "2022.07.29"]
[EventType "team-tourn"]
[EventCountry "IND"]
[SourceTitle "playchess.com"]
[Source "ChessBase"]
[SourceQuality "1"]
[WhiteTeam "Romania"]
[BlackTeam "Chile"]
[WhiteTeamCountry "ROU"]
[BlackTeamCountry "CHI"]
[TimeControl "40/5400+30:1800+30"]

1. e4 {[%emt 0:00:05]} c5 {[%emt 0:00:09]} 2. Nf3 {[%emt 0:00:04]} e6 {[%emt 0:00:05]} 3. d4 {[%emt 0:00:04]} cxd4 {[%emt 0:00:04]} 4. Nxd4 {[%emt 0:00:12]} a6 {[%emt 0:00:05]} 5. Nc3 {[%emt 0:00:13]} b5 {[%emt 0:00:22]} 6. Bd3 {[%emt 0:00:12]} Bb7 {[%emt 0:00:05]} 7. O-O {[%emt 0:00:14]} Nc6 {[%emt 0:00:29]} 8. Nxc6 {[%emt 0:04:36]} Bxc6 {[%emt 0:00:17]} 9. a4 {[%emt 0:00:12]} b4 {[%emt 0:02:29]} 10. Nb1 {[%emt 0:02:01]} Qc7 {[%emt 0:02:18]} 11. Qe2 {[%emt 0:05:59]} Bd6 {[%emt 0:04:27]} 12. g3 {[%emt 0:07:42]} h5 {[%emt 0:11:28]} 13. Nd2 {[%emt 0:02:38]} Nf6 {[%emt 0:29:44]} 14. Nc4 {[%emt 0:01:53]} Ng4 {[%emt 0:02:27]} 15. Nxd6+ {[%emt 0:01:00]} Qxd6 {[%emt 0:00:03]} 16. Bf4 {[%emt 0:11:57]} e5 {[%emt 0:04:20]} 17. Bd2 {[%emt 0:00:49]} a5 {[%emt 0:04:55]} 18. f3 {[%emt 0:06:54]} Nf6 {[%emt 0:02:41]} 19. Bc4 {[%emt 0:05:41]} O-O {[%emt 0:12:04]} 20. Be3 {[%emt 0:00:48]} Qe7 {[%emt 0:00:23]} 21. Rfd1 {[%emt 0:00:46]} d6 {[%emt 0:04:06]} 22. b3 {[%emt 0:00:38]} Rfd8 {[%emt 0:00:30]} 23. Bg5 {[%emt 0:02:47]} Qa7+ {[%emt 0:01:24]} 24. Qf2 {[%emt 0:03:30]} Qxf2+ {[%emt 0:07:40]} 25. Kxf2 {[%emt 0:00:10]} Rd7 {[%emt 0:00:35]} 26. Rd2 {[%emt 0:07:14]} Nh7 {[%emt 0:00:45]} 27. Be3 {[%emt 0:00:16]} Nf6 {[%emt 0:00:04]} 28. Rad1 {[%emt 0:02:00]} Rc8 {[%emt 0:08:00]} 29. Bb6 {[%emt 0:08:22]} Bxa4 {[%emt 0:02:22]} 30. Bxa5 {[%emt 0:02:05]} Bc6 {[%emt 0:00:34]} 31. Bxb4 {[%emt 0:00:23]} Bxe4 {[%emt 0:00:21]} 32. Ke3 {[%emt 0:12:08]} Bf5 {[%emt 0:00:34]} 33. Bxd6 {[%emt 0:01:56]} e4 {[%emt 0:00:22]} 34. Be5 {[%emt 0:08:26]} Rxd2 {[%emt 0:00:15]} 35. Rxd2 {[%emt 0:00:11]} Nd7 {[%emt 0:00:34]} 36. Bd4 {[%emt 0:01:23]} exf3 {[%emt 0:00:10]} 37. Kxf3 {[%emt 0:00:33]} Bg4+ {[%emt 0:00:03]} 38. Kg2 {[%emt 0:00:49]} Nf8 {[%emt 0:00:39]} 39. Rf2 {[%emt 0:00:46]} Rc7 {[%emt 0:00:56]} 40. Bb2 {[%emt 0:00:57]} Bc8 {[%emt 0:00:37]} 41. Bd5 {[%emt 0:31:26]} Ne6 {[%emt 0:02:16]} 42. Be5 {[%emt 0:00:00]} Rd7 {[%emt 0:10:09]} 43. Bc6 {[%emt 0:00:00]} Rd1 {[%emt 0:00:51]} 44. Bf3 {[%emt 0:00:00]} Re1 {[%emt 0:00:34]} 45. Re2 {[%emt 0:00:00]} Rb1 {[%emt 0:09:07]} 46. h4 {[%emt 0:00:00]} g6 {[%emt 0:02:02]} 47. Rd2 {[%emt 0:00:00]} Ba6 {[%emt 0:02:09]} 48. Rd6 {[%emt 0:00:00]} Bf1+ {[%emt 0:00:49]} 49. Kf2 {[%emt 0:00:00]} Bh3 {[%emt 0:00:30]} 50. Rb6 {[%emt 0:00:00]} f6 {[%emt 0:03:35]} 51. Rb8+ {[%emt 0:00:00]} Kf7 {[%emt 0:00:41]} 52. Rb7+ {[%emt 0:00:00]} Kf8 {[%emt 0:00:26]} 53. Bxf6 {[%emt 0:00:00]} Bf5 {[%emt 0:00:57]} 54. c4 {[%emt 0:00:26]} 1-0